Cogmind - Beta 16.1 @@@ ROGUE MODE // 2026.03.20 @ 14:12:58 Player: beans Result: Destroyed by WN-U0E(R) with Subdweller Laser Performance ------------- Evolutions (0) 0 Regions Visited (3) 600 Robots Destroyed (24) 120 Value Destroyed (879) 879 Prototype IDs (13) 260 Alien Tech Used (0) 0 Bonus (0) 0 TOTAL SCORE: 1859 Bonus ------- None Cogmind --------- Core Integrity 0/250 Matter 6/300 Energy 100/100 System Corruption 0% Temperature Cool (6) Movement Flying (55) Location -10/Subcaves Parts ------- > --- POWER (1) -------- (None) > --- PROPULSION (2) --- Makeshift Flight Unit > --- UTILITY (2) ------ (None) > --- WEAPON (2) ------- Heavy Riot Gun Grenade Launcher > --- INVENTORY (5) ---- 1B-0RG's Assimilator Peak State ------------ > --- POWER ------------ (None) > --- PROPULSION ------- Makeshift Flight Unit > --- UTILITY ---------- (None) > --- WEAPON ----------- Heavy Riot Gun Grenade Launcher > --- INVENTORY -------- 1B-0RG's Assimilator [Rating: 15] Favorites ----------- Power Light Ion Engine Engine Light Ion Engine Propulsion Aluminum Leg Leg Aluminum Leg Flight Unit Makeshift Flight Unit Utility Subdweller Optics Device Subdweller Optics Weapon Assault Rifle Energy Gun Heavy Riot Gun Ballistic Gun Assault Rifle Launcher Rocket Launcher Build | -11 -10 -10 -10 ------- Run | Yrd Mat Min Sub Slots Evolved . | . . . . Power . | . . . . Propulsion . | . . . . Utility . | . . . . Weapon . | . . . . Parts Attached 12 | 5 1 . 6 Power 1 | 1 . . . Engine 1 | 1 . . . Core . | . . . . Reactor . | . . . . Propulsion 4 | 2 . . 2 Treads . | . . . . Leg 2 | 2 . . . Wheel . | . . . . Hover . | . . . . Flight 2 | . . . 2 Utility 1 | . . . 1 Device 1 | . . . 1 Storage . | . . . . Processor . | . . . . Hackware . | . . . . Protection . | . . . . Artifact . | . . . . Weapon 6 | 2 1 . 3 Energy Gun 1 | . . . 1 Energy Cannon . | . . . . Ballistic Gun 2 | 2 . . . Ballistic Cannon . | . . . . Launcher 3 | . 1 . 2 Special Weapon . | . . . . Impact Weapon . | . . . . Slashing Weapon . | . . . . Piercing Weapon . | . . . . Special Melee Weapon . | . . . . Unidentified Prototypes . | . . . . Parts Lost 7 | . . . 7 Power 1 | . . . 1 Propulsion 3 | . . . 3 Utility . | . . . . Weapon 3 | . . . 3 Highest Loss Streak 3 | . . . 3 To Critical Strikes . | . . . . Average Backups 2 | . 2 4 2 Power . | . . . . Propulsion . | . . . . Utility . | . . . . Weapon 2 | . 2 4 2 Tool/Special . | . . . . Unused Backups 2 | . . . 2 Power . | . . . . Propulsion . | . . . . Utility . | . . . . Weapon 1 | . . . 1 Tool/Special 1 | . . . 1 Average Slot Usage (%) 62 | . 71 71 61 Engine 11 | . 14 14 11 Leg 19 | . 28 28 18 Flight 4 | . . . 5 Device 1 | . . . 1 Energy Gun 2 | . . . 2 Ballistic Gun 11 | . 21 14 10 Launcher 11 | . 6 14 12 Peak Build Rating 15 | 5 5 5 15 Average Rating 6 | 3 5 5 7 On Entrance 3 | . 5 5 5 Avg Prop Armor Cover (%) . | . . . . Naked Turns . | . . . . Heaviest Build 11 | 7 8 8 11 Greatest Support 20 | 20 20 20 20 Greatest Overweight (x) 3 | . . . 3 Average Overweight (x) . | . . . . Largest Inventory Capacity 5 | 5 5 5 5 Average Capacity 5 | 5 5 5 5 Most Carried 5 | 4 4 4 5 Average Carried 2 | . 2 4 2 Final Capacity 5 | 5 5 5 5 Final Carried 5 | 1 4 4 5 Class Distribution -------------------- 100% | Mutant Dominant Class ---------------- Mutant | -10/Materials Mutant | -10/Mines Mutant | -10/Subcaves Resources | -11 -10 -10 -10 ----------- Run | Yrd Mat Min Sub Matter Collected 925 | 184 117 54 570 Remotely . | . . . . Salvage Created 602 | . 117 . 485 Parts 37 | . 13 . 24 Haulers Intercepted . | . . . . Recyclers Shooed . | . . . . Parts Field Recycled . | . . . . Retrieved Matter . | . . . . Parts Self-Destructed 14 | . . . 14 Prevented . | . . . . Parts Restored . | . . . . Kills | -11 -10 -10 -10 ------- Run | Yrd Mat Min Sub Combat Hostiles Destroyed 23 | . 4 . 19 Guns 2 | . 2 . . AOE 21 | . 2 . 19 Classes Destroyed 5 | . 3 . 2 Tunneler 1 | . 1 . . Swarmer 2 | . 2 . . Grunt 4 | . 2 . 2 Artisan 1 | . . . 1 Subdweller 17 | . . . 17 Best Kill Streak 6 | . 4 . 6 Combat Bots Only 6 | . 4 . 6 Max Kills in Single Turn 2 | . 1 . 2 Gunslinging . | . . . . Exploded 1 | . 1 . 1 Melee . | . . . . Uniques/NPCs Destroyed . | . . . . Combat | -11 -10 -10 -10 -------- Run | Yrd Mat Min Sub Hostile Shots Fired 73 | . 31 . 42 Missed 20 | . 6 . 14 Hits 53 | . 25 . 28 Projectile 53 | . 25 . 28 Critical Strikes 2 | . . . 2 Damage Taken 963 | . 280 . 683 Core 262 | . 79 . 183 Absorbed by Shields . | . . . . Core Remaining (%) 100 | 100 . . . Volleys Fired 90 | 1 17 1 71 Largest 2 | 2 2 1 1 Hottest 60 | 40 40 30 60 Shots Fired 99 | 2 25 1 71 Gun 20 | 2 16 . 2 Cannon . | . . . . Launcher 79 | . 9 1 69 Special . | . . . . Kinetic 18 | 2 16 . . Thermal . | . . . . Explosive 79 | . 9 1 69 Electromagnetic 2 | . . . 2 Robot Hit Streak 18 | 2 9 . 18 Robot Miss Streak 2 | . 2 . 2 Penetration Max . | . . . . Secondary Targets 1 | . 1 . . Max Gunslinging Chain 1 | . 1 . . Shots Hit Robots 49 | 2 14 . 33 Core Hits 47 | . 8 1 38 Critical Kills . | . . . . Critical Parts Destroyed 1 | 1 . . . Critical Strikes 1 | 1 . . . Destroy 1 | 1 . . . Melee Attacks . | . . . . Impact . | . . . . Slashing . | . . . . Piercing . | . . . . Sneak Attacks . | . . . . Combat Hostiles . | . . . . Follow-up Attacks . | . . . . Damage Inflicted 2602 | 23 266 28 2285 Guns 177 | 23 154 . . Cannons . | . . . . Explosions 2425 | . 112 28 2285 Melee . | . . . . Ramming . | . . . . Kinetic 177 | 23 154 . . Thermal . | . . . . Explosive 2425 | . 112 28 2285 Electromagnetic . | . . . . Impact . | . . . . Slashing . | . . . . Piercing . | . . . . Highest Corruption . | . . . . Average Corruption . | . . . . Corruption Purged . | . . . . Corruption Blocked . | . . . . Overload Shots . | . . . . Overflow Damage . | . . . . Projectiles . | . . . . Explosions . | . . . . Melee . | . . . . Knockbacks . | . . . . Impact . | . . . . Kinetic . | . . . . Secondary . | . . . . Self-Inflicted Damage 85 | . 16 . 69 Shots 6 | . 1 . 5 Rammed . | . . . . Targets Rammed . | . . . . Kicked . | . . . . Crushed . | . . . . Highest Temperature 8 | . 8 . . Average Temperature 2 | . 2 . . Received Heat Transfer 171 | . 93 . 78 Siege Activations . | . . . . Martial Activations . | . . . . Shielding Activations . | . . . . Robots Disrupted . | . . . . Combat Hostiles . | . . . . Robots Corrupted . | . . . . Combat Hostiles . | . . . . Parts Fried . | . . . . Impact Corruptions . | . . . . Robots Melted . | . . . . Combat Hostiles . | . . . . Parts Melted . | . . . . Heat Transferred . | . . . . Parts Sabotaged . | . . . . Parts Stolen . | . . . . Parts Stripped . | . . . . Power Chain Reactions . | . . . . Alert | -11 -10 -10 -10 ------- Run | Yrd Mat Min Sub Maximum Alert Level . | . . . . Low Security (%) 100 | 100 100 100 . Level 1 . | . . . . Level 2 . | . . . . Level 3 . | . . . . Level 4 . | . . . . Level 5 . | . . . . High Security . | . . . . Max Security . | . . . . Peak Influence 120 | . 120 35 . Initial 35 | . . 35 . Average 27 | . 50 21 . Influence Increases 191 | . 137 4 50 Destroy 0b10 Robot/C 120 | . 80 . 40 Destroy 0b10 Robot/NC 5 | . 5 . . Destroy Leader 30 | . 20 . 10 Disable Machine 15 | . 15 . . Destroy Structure 21 | . 17 4 . Influence Decreases 191 | . 45 87 59 Entered New Map 62 | . . 57 5 Time Decay 129 | . 45 30 54 Squads Dispatched 2 | . 2 . . Investigation 1 | . 1 . . Extermination . | . . . . Reinforcement 1 | . 1 . . Assault . | . . . . Garrison . | . . . . Intercept . | . . . . Searches Triggered . | . . . . Construction Impeded . | . . . . Haulers Reinforced . | . . . . Active Scanning Responses . | . . . . Cargo Convoy Interrupts . | . . . . Stealth | -11 -10 -10 -10 --------- Run | Yrd Mat Min Sub Distress Signals 2 | . 2 . . Communications Jammed . | . . . . Distress Signals . | . . . . Times Spotted 25 | . 6 . 19 Peak Tracking Total 3 | . 3 . 2 Tactical Retreats . | . . . . Traps | -11 -10 -10 -10 ------- Run | Yrd Mat Min Sub Traps Triggered 1 | . . . 1 Indirectly . | . . . . Trap Hack Attempts . | . . . . Triggered . | . . . . Disarmed . | . . . . Reprogrammed . | . . . . Reused . | . . . . Traps Extracted . | . . . . Installed . | . . . . Triggered . | . . . . Machines | -11 -10 -10 -10 ---------- Run | Yrd Mat Min Sub Machines Disabled 1 | . 1 . . Max in Single Turn 1 | . 1 . . Machines Repaired . | . . . . Machines Dismantled . | . . . . Machines Sabotaged . | . . . . Overloaded Fab Kills . | . . . . Hacking | -11 -10 -10 -10 --------- Run | Yrd Mat Min Sub Machines Accessed 1 | . . . 1 Terminals . | . . . . Fabricators . | . . . . Repair Stations . | . . . . Recycling Units . | . . . . Scanalyzers . | . . . . Garrison Access . | . . . . Total Hacks 9 | . . . 9 Successful 9 | . . . 9 Failed . | . . . . Catastrophic . | . . . . Database Lockouts . | . . . . Manual . | . . . . Terminals . | . . . . Fabricators . | . . . . Repair Stations . | . . . . Recycling Units . | . . . . Scanalyzers . | . . . . Garrison Access . | . . . . Terminal Hacks 9 | . . . 9 Record 8 | . . . 8 Proto ID Catalog 1 | . . . 1 Fabricator Hacks . | . . . . Repair Station Hacks . | . . . . Recycling Unit Hacks . | . . . . Scanalyzer . | . . . . Garrison Access Hacks . | . . . . Unauthorized Hacks . | . . . . Terminals . | . . . . Fabricators . | . . . . Repair Stations . | . . . . Recycling Units . | . . . . Scanalyzers . | . . . . Garrison Access . | . . . . Data Cores Recovered . | . . . . Used . | . . . . Hacking Detections . | . . . . Full Trace Events . | . . . . Feedback Events . | . . . . Feedback Blocked . | . . . . Robot Schematics Acquired . | . . . . Robots Built . | . . . . Authchips . | . . . . Time . | . . . . Total Robot Build Rating . | . . . . Part Schematics Acquired . | . . . . Parts Built . | . . . . Authchips . | . . . . Time . | . . . . Total Part Build Rating . | . . . . Part Studies Acquired . | . . . . Parts Repaired . | . . . . Time . | . . . . Parts Recycled . | . . . . Recycled Matter . | . . . . Retrieved Matter . | . . . . Retrieved Components . | . . . . Parts Scanalyzed . | . . . . Part Schematics Acquired . | . . . . Parts Damaged . | . . . . Bothacking | -11 -10 -10 -10 ------------ Run | Yrd Mat Min Sub Used RIF Installer . | . . . . Robots Hacked . | . . . . Non-combat . | . . . . Combat . | . . . . Robot Hacks Applied . | . . . . Relay Couplers Released . | . . . . Fabnet Peak Effective % . | . . . . Robots Rewired . | . . . . Allies Hacked . | . . . . Hacks Repelled . | . . . . Allies | -11 -10 -10 -10 -------- Run | Yrd Mat Min Sub Total Allies . | . . . . Largest Group . | . . . . Highest-Rated Group . | . . . . Highest-Rated Ally . | . . . . Total Orders . | . . . . Ally Attacks . | . . . . Total Damage . | . . . . Kills . | . . . . Allies Corrupted . | . . . . Allies Melted . | . . . . Intel | -11 -10 -10 -10 ------- Run | Yrd Mat Min Sub Active Infowar (turns) 226 | . . . 226 Optics 226 | . . . 226 Robot Analysis Total . | . . . . Derelict Logs Recovered . | . . . . Drone Launches . | . . . . Drone Recoveries . | . . . . Exploration | -11 -10 -10 -10 ------------- Run | Yrd Mat Min Sub Turns Passed 2494 | 114 153 73 2154 Spaces Moved 1845 | 100 80 60 1605 Core 75 | 27 . . 48 Treads . | . . . . Legs 1137 | 73 80 60 924 Wheels . | . . . . Hover . | . . . . Flight 633 | . . . 633 Fastest Speed 50 | 50 120 120 50 Average Speed 97 | 101 120 120 95 Slowest Speed 200 | 120 120 120 200 Overloaded Moves . | . . . . Propulsion Burnouts . | . . . . Robots Hopped . | . . . . Potential Cave-ins 2 | . . . 2 Cave-ins Triggered . | . . . . Exploration Rate (%) 27 | 4 26 18 61 Regions Visited 3 Branch Regions 2 Pre-discovered Areas . | . . . . Known Exits Taken . | . . . . Unknown Exits Taken 3 | 1 1 1 . Scrap Searched 7 | . . 1 6 Spaces Dug 72 | . 5 . 67 Terrain Destroyed 489 | . 28 6 455 Melee . | . . . . Projectile . | . . . . AOE 489 | . 28 6 455 Terrain Rammed . | . . . . Walls Destroyed . | . . . . Machines Disabled . | . . . . Actions | -11 -10 -10 -10 --------- Run | Yrd Mat Min Sub Total 2435 | 111 111 60 2153 Wait 467 | . 11 . 456 Move 1842 | 99 79 59 1605 Hop . | . . . . Pick Up 14 | 6 3 . 5 Fast Attach . | . . . . Attach 12 | 5 . . 7 Detach 2 | . . . 2 Swap 5 | . 1 . 4 Drop 3 | . . . 3 Fire 90 | 1 17 1 71 Melee . | . . . . Ram . | . . . . Kick . | . . . . Crush . | . . . . Escape Stasis . | . . . . Rewire . | . . . . Trap . | . . . . Miscellaneous . | . . . . Route ------- -11/Scrapyard -10/Materials -10/Mines -10/Subcaves (discovered 2 exits: [*Mat x2]) History --------- Turn | Location | Event 4 | -11/Scrapyard | Discovered new exit (range 15) 115 | -11/Scrapyard | Entered Materials 218 | -10/Materials | Met 8R-AWN 236 | -10/Materials | Discovered new exit (range 14) 268 | -10/Materials | Entered Mines 270 | -10/Mines | Followed 8R-AWN into the Mines 275 | -10/Mines | Received a Rocket Launcher from a helpful Derelict 314 | -10/Mines | Build established: Mutant 331 | -10/Mines | Discovered new exit (range 9) 341 | -10/Mines | Entered Subcaves 449 | -10/Subcaves | Curiously followed by a Cobbler waking with a query about "LVR3C" 595 | -10/Subcaves | Ambushed by Subdweller buried in earth 599 | -10/Subcaves | Ambushed by Subdweller buried in earth 600 | -10/Subcaves | Core integrity fell below 50% 866 | -10/Subcaves | Visited 4L-MR0's lab 1105 | -10/Subcaves | Shifting Twisted Machinery released Sub. Machine Gun 1120 | -10/Subcaves | Shifting Twisted Machinery released Battle Cannon 1478 | -10/Subcaves | Discovered new exit (range 11) 1656 | -10/Subcaves | Shifting Twisted Machinery released Sub. Laser 1730 | -10/Subcaves | Shifting Twisted Machinery released Mak. System Restoration Module 1745 | -10/Subcaves | Discovered new exit (range 19) 1776 | -10/Subcaves | Lost 3 parts (2n1w) 2098 | -10/Subcaves | Ambushed by Subdweller buried in earth 2100 | -10/Subcaves | Ambushed by Subdweller buried in earth 2102 | -10/Subcaves | Ambushed by Subdweller buried in earth 2106 | -10/Subcaves | Ambushed by Subdweller buried in earth 2113 | -10/Subcaves | Core integrity fell below 20% 2133 | -10/Subcaves | Lost 3 parts (1p1n1w) 2281 | -10/Subcaves | Found Prototype Special Melee Weapon 2492 | -10/Subcaves | Ambushed by Subdweller buried in earth 2495 | -10/Subcaves | Destroyed by WN-U0E(R) with Subdweller Laser Last Messages --------------- There was a rumor. A rumor but no details. I can't build something based on a vague rumor about ending the world in a hellish blaze at the flip of a switch. Also why would anyone want that. >>Record "Uberlauncher" I hear [REDACTED] exploded during the installation process. I did warn them to fully install it before trying to fire, and something tells me that's where things went wrong. Still I'm glad they didn't listen, that way I'm not culpable for whatever they would've done with it. If we're lucky even some of the others got blasted, too. >>Record "Procsplitter" This one said they'd fill my processors with garbage if I didn't build exactly what they want. The unstable cave ceiling collapses. WN-U0E(R): "ARGHSUB!" Map ----- +----------------------------------------------------+ | | | | | | | | | | | | | | | | | ??????##?????????????????????????????????????????? | | ###### ##????????????????????????????????????????? | | "# [ ##???????????????????????????????????????? | | " = #???????????????????????????????????????? | | ! # & ##???????????????????????????????????????? | | # & [##???????????????????????????????????????? | | # #???????????????????????????????????????? | | [ ##???????????????????????????????????????? | | #????????????????????????????????????????? | | ## #????????????????????????????????????????? | | ! ##????????????????????????????????????????? | | ""##????????##??????????????????????????????? | | # # #?????### #####??????????????????????????? | | ###????## # # #??????????????????????????? | | ###???# # ## #????####### ###???????????? | | =& ##### ## ####### ###?????????? | | # # # # ""# ???????? | | <@ "" ???????? | | ## & " O R # ##???????? | | ##### # # # ##### #??????????? | | ##??## #####?????# #??????????? | | ###??## # #####???????????######??????????? | | #??## "########??????????????????????????????? | | #### ###?????????????????????????????????????? | | # # !##??#####????????????????????????????????? | | ##### ##???????????????????????????????? | | #???????????????????????????????? | | ### #???????????????????????????????? | | ?# !## ###?????????????????????????????? | | ?# "#### #?????????????????????????????? | | ?# "#??# #?????????????????????????????? | | # """??##### ##????????????????????????????? | | #""""""##?????## #???????#######?##???????????? | | ##"""""#?####### ##??????## ## ## ###?????????? | | ### ### ## ###??### # # #### #######???? | | " ###### #### # # # ###?? | | # # ### ## #? | | # #???????? | | ] # ##???????? | | # ##????????? | | # # ##### ##?????????? | | ## #### ### ##??????????? | +----------------------------------------------------+ Best States ------------- Heat Dissipation 25 Energy Generation 10 Energy Capacity 125 Matter Stores 300 Matter Capacity 300 Sight Range 21 Terrain Scan Density 10 Evasion (%) 59 Item Schematics ----------------- None Robot Schematics ------------------ None Fabricated ------------ Nothing Repaired ---------- Nothing Studied --------- None Alien Tech Used ----------------- None Achievements -------------- None Challenges ------------ None Game ------ Seed FluxSuperquantumPenetrator Manual? 0 Play Time 00:14:14 Cumulative 249.6 hours Start 2026.03.20 @ 13:59:49 End 2026.03.20 @ 14:12:58 Sessions 1 Manual Loads 0 Difficulty Rogue Special Mode None Game No. 678 Rogue 676 Adventurer 2 Explorer 0 Win Type - Total 0 Types 0/0/0/0/0/0/0/0/0/0 Lore% 66 Gallery% 62 Achievement% 42 Wizard Run 0 Options --------- Layout 1 ASCII 0 Keyboard 0 Movement Mouse Keybinds 0 Fullscreen 1 Font 24/Smallcaps Map View 50x35 Zoom Use 0% Tactical HUD 0 Map Filters NONE Filters NONE Steam 1 RUN: d0f25502-aee1-48eb-ba59-9e20c85d0043